Cogmind - Beta 13 @@@ ROGUE MODE // 2024.08.05 @ 04:31:50 Player: AzyMyt Result: Self-destructed Performance ------------- Evolutions (2) 1000 Regions Visited (3) 600 Robots Destroyed (14) 70 Value Destroyed (197) 197 Prototype IDs (2) 40 Alien Tech Used (0) 0 Bonus (202) 202 TOTAL SCORE: 2109 Bonus ------- Pacifist 200 High Alert Combat Kills 2 Cogmind --------- Core Integrity 405/550 Matter 134/300 Energy 6/100 System Corruption 0% Temperature Cool (0) Movement Hovering (120) Ox1 Location -8/Materials Parts ------- > --- POWER (1) -------- (None) > --- PROPULSION (3) --- Airjet > --- UTILITY (5) ------ Small Storage Unit Structural Scanner Visual Processing Unit Shield Generator Hacking Suite > --- WEAPON (2) ------- High-powered Shotgun > --- INVENTORY (8) ---- Light Deuterium Engine Airjet Improved Heat Sink Small Storage Unit Small Storage Unit Weight Redist. System Weight Redist. System Field Laser Peak State ------------ > --- POWER ------------ Deuterium Engine > --- PROPULSION ------- Airjet Airjet Airjet > --- UTILITY ---------- Small Storage Unit Weight Redist. System Visual Processing Unit Shield Generator Hacking Suite > --- WEAPON ----------- Field Laser High-powered Shotgun > --- INVENTORY -------- Light Deuterium Engine Airjet Improved Heat Sink Small Storage Unit Small Storage Unit Weight Redist. System Structural Scanner High-powered Shotgun [Rating: 29] Favorites ----------- Power Light Ion Engine Engine Light Ion Engine Propulsion Airjet Treads Light Treads Wheel Wheel Hover Unit Airjet Flight Unit Flight Unit Utility Structural Scanner Device Structural Scanner Storage Small Storage Unit Processor Visual Processing Unit Hackware Hacking Suite Protection Light Armor Plating Weapon Light Assault Rifle Energy Gun Particle Gun Energy Cannon Heavy Particle Cannon Ballistic Gun Light Assault Rifle Build | -11 -10 -9 -8 ------- Run | Yrd Mat Mat Mat Slots Evolved 4 | . . 2 2 Power . | . . . . Propulsion 1 | . . . 1 Utility 3 | . . 2 1 Weapon . | . . . . Parts Attached 40 | 8 3 18 11 Power 4 | 1 . 1 2 Engine 4 | 1 . 1 2 Core . | . . . . Reactor . | . . . . Propulsion 11 | 2 . 8 1 Treads 2 | . . 2 . Leg . | . . . . Wheel 4 | 2 . 2 . Hover 3 | . . 2 1 Flight 2 | . . 2 . Utility 14 | 3 2 5 4 Device 6 | . 1 2 3 Storage 5 | 3 1 1 . Processor 1 | . . 1 . Hackware 1 | . . . 1 Protection 1 | . . 1 . Artifact . | . . . . Weapon 11 | 2 1 4 4 Energy Gun 5 | 1 . 2 2 Energy Cannon 1 | . . 1 . Ballistic Gun 5 | 1 1 1 2 Ballistic Cannon . | . . . . Launcher . | . . . . Special Weapon . | . . . . Impact Weapon . | . . . . Slashing Weapon . | . . . . Piercing Weapon . | . . . . Special Melee Weapon . | . . . . Unidentified Prototypes . | . . . . Parts Lost 10 | . . 6 4 Power 1 | . . . 1 Propulsion 3 | . . 1 2 Utility 3 | . . 3 . Weapon 3 | . . 2 1 Highest Loss Streak 4 | . . 4 4 To Critical Strikes . | . . . . Average Slot Usage (%) 97 | . 95 97 99 Engine 11 | . 14 11 9 Wheel 10 | . 28 7 . Hover 10 | . . 6 26 Flight 2 | . . 5 . Device 19 | . 9 23 21 Storage 9 | . 14 7 9 Processor 4 | . . 3 9 Hackware 1 | . . . 5 Protection 3 | . . 8 . Energy Gun 5 | . 1 3 12 Ballistic Gun 15 | . 26 15 5 Naked Turns . | . . . . Heaviest Build 53 | 10 46 53 23 Greatest Support 46 | 26 26 46 30 Greatest Overweight (x) 5 | . 1 5 . Average Overweight (x) . | . . . . Largest Inventory Capacity 20 | 8 20 20 8 Average Capacity 12 | 7 17 12 8 Most Carried 20 | 4 20 20 8 Average Carried 10 | 2 11 12 7 Final Capacity 20 | 8 20 20 8 Final Carried 17 | 4 17 16 8 Class Distribution -------------------- 100% | Mutant Dominant Class ---------------- Mutant | -10/Materials Mutant | -9/Materials Mutant | -8/Materials Resources | -11 -10 -9 -8 ----------- Run | Yrd Mat Mat Mat Matter Collected 534 | 196 . 248 90 Remotely . | . . . . Salvage Created 371 | . . 235 136 Parts 28 | . . 17 11 Haulers Intercepted 3 | . . 2 1 Recyclers Shooed 1 | . . 1 . Parts Field Recycled . | . . . . Retrieved Matter . | . . . . Parts Self-Destructed . | . . . . Prevented . | . . . . Kills | -11 -10 -9 -8 ------- Run | Yrd Mat Mat Mat Combat Hostiles Destroyed 10 | . . 5 5 Guns 9 | . . 5 4 AOE 1 | . . . 1 Classes Destroyed 4 | . . 4 . Worker 1 | . . 1 . Hauler 3 | . . 2 1 Swarmer 8 | . . 4 4 Sentry 2 | . . 1 1 Best Kill Streak 5 | . . 5 4 Combat Bots Only 4 | . . 4 4 Max Kills in Single Turn 1 | . . 1 1 Gunslinging . | . . . . Exploded 1 | . . . 1 Melee . | . . . . Uniques/NPCs Destroyed . | . . . . Combat | -11 -10 -9 -8 -------- Run | Yrd Mat Mat Mat Hostile Shots Fired 163 | . . 72 91 Missed 63 | . . 30 33 Damage Taken 1088 | . . 561 527 Core 236 | . . 91 145 Absorbed by Shields 127 | . . . 127 Core Remaining (%) 92 | 100 100 77 . Volleys Fired 49 | . 5 26 18 Largest 2 | . 2 2 2 Hottest 140 | . 40 140 130 Shots Fired 96 | . 10 52 34 Gun 95 | . 10 51 34 Cannon 1 | . . 1 . Launcher . | . . . . Special . | . . . . Kinetic 78 | . 10 50 18 Thermal 18 | . . 2 16 Explosive . | . . . . Electromagnetic . | . . . . Robot Hit Streak 12 | . 3 12 3 Robot Miss Streak 9 | . 3 3 9 Penetration Max . | . . . . Secondary Targets 1 | . . . 1 Max Gunslinging Chain 1 | . . . 1 Shots Hit Robots 49 | . 4 29 16 Core Hits 24 | . . 13 11 Critical Kills 1 | . . 1 . Critical Parts Destroyed . | . . . . Critical Strikes 1 | . . 1 . Destroy 1 | . . 1 . Melee Attacks . | . . . . Impact . | . . . . Slashing . | . . . . Piercing . | . . . . Sneak Attacks . | . . . . Combat Hostiles . | . . . . Follow-up Attacks . | . . . . Damage Inflicted 739 | . 35 283 421 Guns 655 | . 35 255 365 Cannons 25 | . . 25 . Explosions 56 | . . . 56 Melee . | . . . . Ramming 3 | . . 3 . Kinetic 524 | . 35 255 234 Thermal 212 | . . 25 187 Explosive . | . . . . Electromagnetic . | . . . . Impact . | . . . . Slashing . | . . . . Piercing . | . . . . Highest Corruption . | . . . . Average Corruption . | . . . . Corruption Purged . | . . . . Corruption Blocked . | . . . . Overload Shots . | . . . . Overflow Damage . | . . . . Projectiles . | . . . . Explosions . | . . . . Melee . | . . . . Knockbacks . | . . . . Impact . | . . . . Kinetic . | . . . . Secondary . | . . . . Self-Inflicted Damage 1 | . . 1 . Shots . | . . . . Rammed 1 | . . 1 . Targets Rammed 1 | . . 1 . Kicked . | . . . . Crushed . | . . . . Highest Temperature 146 | . . 89 146 Average Temperature 27 | . . 11 41 Received Heat Transfer 371 | . . 237 134 Siege Activations . | . . . . Robots Corrupted . | . . . . Combat Hostiles . | . . . . Parts Fried . | . . . . Impact Corruptions . | . . . . Robots Melted . | . . . . Combat Hostiles . | . . . . Parts Melted . | . . . . Heat Transferred 383 | . . 37 346 Parts Sabotaged . | . . . . Parts Stolen . | . . . . Parts Stripped . | . . . . Power Chain Reactions . | . . . . Alert | -11 -10 -9 -8 ------- Run | Yrd Mat Mat Mat Peak Influence 401 | . 67 231 401 Initial 61 | . . 27 61 Average 104 | . 23 100 202 Maximum Alert Level 2 | . . 1 2 Low Security (%) 83 | 100 100 95 47 Level 1 16 | . . 4 51 Level 2 . | . . . . Level 3 . | . . . . Level 4 . | . . . . Level 5 . | . . . . High Security . | . . . . Max Security . | . . . . Squads Dispatched 3 | . . 1 2 Investigation 1 | . . . 1 Extermination . | . . . . Reinforcement 2 | . . 1 1 Assault . | . . . . Garrison . | . . . . Intercept . | . . . . Searches Triggered . | . . . . Construction Impeded . | . . . . Haulers Reinforced . | . . . . Active Scanning Responses . | . . . . Cargo Convoy Interrupts . | . . . . Stealth | -11 -10 -9 -8 --------- Run | Yrd Mat Mat Mat Distress Signals 2 | . . 2 . Communications Jammed . | . . . . Distress Signals . | . . . . Times Spotted 47 | . 4 22 21 Peak Tracking Total 11 | . 2 11 11 Tactical Retreats 5 | . . 3 2 Traps | -11 -10 -9 -8 ------- Run | Yrd Mat Mat Mat Traps Triggered . | . . . . Indirectly . | . . . . Trap Hack Attempts . | . . . . Triggered . | . . . . Disarmed . | . . . . Reprogrammed . | . . . . Reused . | . . . . Traps Extracted . | . . . . Installed . | . . . . Triggered . | . . . . Machines | -11 -10 -9 -8 ---------- Run | Yrd Mat Mat Mat Machines Disabled 2 | . . . 2 Max in Single Turn 1 | . . . 1 Machines Repaired . | . . . . Machines Dismantled . | . . . . Machines Sabotaged . | . . . . Overloaded Fab Kills . | . . . . Hacking | -11 -10 -9 -8 --------- Run | Yrd Mat Mat Mat Machines Accessed 11 | . 4 3 4 Terminals 9 | . 4 1 4 Fabricators . | . . . . Repair Stations . | . . . . Recycling Units 1 | . . 1 . Scanalyzers 1 | . . 1 . Garrison Access . | . . . . Total Hacks 30 | . 11 5 14 Successful 20 | . 7 4 9 Failed 10 | . 4 1 5 Catastrophic 3 | . 2 1 . Database Lockouts . | . . . . Manual 20 | . 9 1 10 Terminals 26 | . 11 1 14 Fabricators . | . . . . Repair Stations . | . . . . Recycling Units 1 | . . 1 . Scanalyzers 3 | . . 3 . Garrison Access . | . . . . Terminal Hacks 11 | . 5 . 6 Record 1 | . 1 . . Prototype ID Bank 1 | . . . 1 Level Access Points 3 | . 2 . 1 Terminal Index 2 | . 1 . 1 Alert Level 3 | . 1 . 2 Dispatch Records 1 | . . . 1 Fabricator Hacks . | . . . . Repair Station Hacks . | . . . . Recycling Unit Hacks 1 | . . 1 . Report Inventory 1 | . . 1 . Scanalyzer 3 | . . 3 . Insert Component 1 | . . 1 . Analyze 2 | . . 2 . Garrison Access Hacks . | . . . . Unauthorized Hacks 5 | . 2 . 3 Terminals 5 | . 2 . 3 Track 2 | . 1 . 1 Botnet 3 | . 1 . 2 Fabricators . | . . . . Repair Stations . | . . . . Recycling Units . | . . . . Scanalyzers . | . . . . Garrison Access . | . . . . Data Cores Recovered . | . . . . Used . | . . . . Hacking Detections 10 | . 4 2 4 Full Trace Events 2 | . 1 . 1 Feedback Events . | . . . . Feedback Blocked . | . . . . Robot Schematics Acquired . | . . . . Robots Built . | . . . . Authchips . | . . . . Time . | . . . . Total Robot Build Rating . | . . . . Part Schematics Acquired 1 | . . 1 . Parts Built . | . . . . Authchips . | . . . . Time . | . . . . Total Part Build Rating . | . . . . Parts Repaired . | . . . . Time . | . . . . Parts Recycled . | . . . . Recycled Matter . | . . . . Retrieved Matter . | . . . . Retrieved Components . | . . . . Parts Scanalyzed 1 | . . 1 . Part Schematics Acquired 1 | . . 1 . Parts Damaged . | . . . . Bothacking | -11 -10 -9 -8 ------------ Run | Yrd Mat Mat Mat Used RIF Installer . | . . . . Robots Hacked . | . . . . Non-combat . | . . . . Combat . | . . . . Robot Hacks Applied . | . . . . Relay Couplers Released . | . . . . Fabnet Peak Effective % . | . . . . Robots Rewired . | . . . . Allies Hacked . | . . . . Hacks Repelled . | . . . . Allies | -11 -10 -9 -8 -------- Run | Yrd Mat Mat Mat Total Allies . | . . . . Largest Group . | . . . . Highest-Rated Group . | . . . . Highest-Rated Ally . | . . . . Total Orders . | . . . . Ally Attacks . | . . . . Total Damage . | . . . . Kills . | . . . . Allies Corrupted . | . . . . Allies Melted . | . . . . Intel | -11 -10 -9 -8 ------- Run | Yrd Mat Mat Mat Robot Analysis Total . | . . . . Derelict Logs Recovered . | . . . . Drone Launches . | . . . . Drone Recoveries . | . . . . Exploration | -11 -10 -9 -8 ------------- Run | Yrd Mat Mat Mat Turns Passed 1274 | 54 332 527 361 Spaces Moved 1363 | 37 280 524 522 Core 10 | 10 . . . Treads 5 | . . 5 . Legs . | . . . . Wheels 434 | 27 280 127 . Hover 762 | . . 240 522 Flight 152 | . . 152 . Fastest Speed 37 | 50 90 37 52 Average Speed 70 | 79 101 70 52 Slowest Speed 440 | 90 105 440 52 Overloaded Moves . | . . . . Propulsion Burnouts . | . . . . Robots Hopped 1 | . . 1 . Cave-ins Triggered . | . . . . Exploration Rate (%) 32 | 4 45 39 40 Regions Visited 3 Branch Regions . Pre-discovered Areas . | . . . . Known Exits Taken 1 | . 1 . . Unknown Exits Taken 2 | 1 . 1 . Scrap Searched . | . . . . Spaces Dug . | . . . . Terrain Destroyed 32 | . . . 32 Melee . | . . . . Projectile . | . . . . AOE 32 | . . . 32 Terrain Rammed . | . . . . Walls Destroyed . | . . . . Machines Disabled . | . . . . Actions | -11 -10 -9 -8 --------- Run | Yrd Mat Mat Mat Total 1602 | 60 326 640 576 Wait 61 | 8 1 35 17 Move 1358 | 36 279 521 522 Hop 1 | . . 1 . Pick Up 52 | 6 25 17 4 Fast Attach 18 | 5 1 10 2 Attach 9 | 3 1 2 3 Detach 3 | 1 1 1 . Swap 13 | . 1 6 6 Drop 37 | 1 12 20 4 Fire 49 | . 5 26 18 Melee . | . . . . Ram 1 | . . 1 . Kick . | . . . . Crush . | . . . . Escape Stasis . | . . . . Rewire . | . . . . Trap . | . . . . Miscellaneous . | . . . . Route ------- -11/Scrapyard -10/Materials (discovered 3 exits: *Mat x3) -9/Materials -8/Materials (discovered 3 exits: Fac x3) History --------- Turn | Location | Event 36 | -11/Scrapyard | Discovered new exit (range 15) 55 | -11/Scrapyard | Entered Materials 105 | -10/Materials | Identified exit to Materials 315 | -10/Materials | Build established: Mutant 387 | -10/Materials | Entered another Materials area 387 | -9/Materials | Evolved 2 slots: Utility x2 681 | -9/Materials | Lost 4 parts (1n2u1w) 898 | -9/Materials | Discovered new exit (range 11) 914 | -9/Materials | Entered another Materials area 914 | -8/Materials | Evolved 2 slots: Propulsion x1, Utility x1 1051 | -8/Materials | Identified exit to Factory 1275 | -8/Materials | Self-destructed Last Messages --------------- 5x Patrol 5x Transport 1x Investigation 1x Reinforcement 01231_ Connecting with Terminal... >>Trojan(Track) Trojan loaded successfully. Testing... Tracking enabled and active. 01240_ Purification Channel disabled. 01246_ S-10 Pest destroyed. 01259_ Switching to secondary target: G-47 Trooper. 01260_ Airjet destroyed. 01262_ Critical hit (Burn: +25). 01262_ S-10 Pest destroyed. 01263_ Airjet destroyed. 01270_ Hpw. Shotgun destroyed. 01274_ M-13 Machinist repairs S-10 Pest. 01274_ Deuterium Engine destroyed. 01274_ L-31 Rogue destroyed. Map ----- +----------------------------------------------------+ | | | | | | | ?????????????????????????????????????????????????? | | ?????????????????????????????????????????????????? | | ?????????????????????????????????????????????????? | | ?????????????????????????????????????????????????? | | ?????????????????????????????????????????????????? | | ?????????????????????????????????????????????????? | | ?????????????????????????????????????????????????? | | ????